bitfinex-derivatives/quotes_ETHF0:USTF0_20250531
["timestamp","ask_amount","ask_price","bid_price","bid_amount"]
[1748661853215,0.80061,2497.2,2496.9,1.3031]
[1748661854115,0.8065842,2497.3,2496.9,2.10377]
[1748661854514,0.80061,2497.2,2496.9,1.3031]
[1748661854713,0.8007,2496.9,2496.8,0.9068042]
[1748661855105,0.8007,2496.9,2496.8,0.0060042]
[1748661855616,2.1509,2496.9,2496.8,0.0060042]
[1748661857508,0.8007,2496.9,2496.8,0.0060042]
[1748661857909,3.2078,2497.0,2496.8,0.0060042]
[1748661858513,4.00848,2497.0,2496.8,0.0060042]
[1748661858814,0.8007,2496.9,2496.8,0.0060042]
[1748661859210,2.1475,2496.9,2496.8,0.0060042]
[1748661860104,0.8007,2496.9,2496.8,0.0060042]
[1748661860516,0.87225339,2496.9,2496.8,0.0060042]
[1748661861313,2.21905339,2496.9,2496.8,0.0060042]
[1748661861910,0.87225339,2496.9,2496.8,0.0060042]
[1748661862216,0.07155339,2496.9,2496.8,4.0145342]
[1748661862415,0.07155339,2496.9,2496.8,7.0453342]
[1748661863514,3.2138042,2497.3,2496.8,6.2446042]
[1748661863710,0.07155339,2496.9,2496.8,7.0453342]
[1748661864617,0.07155339,2496.9,2496.8,6.2446042]
[1748661865211,0.87225339,2496.9,2496.8,3.2138042]
[1748661865919,0.07155339,2496.9,2496.8,0.0060042]
[1748661866120,0.07155339,2496.9,2496.8,0.8067342]
[1748661866321,0.07155339,2496.9,2496.8,4.0145342]
[1748661866518,0.07155339,2496.9,2496.8,9.0145342]
[1748661866717,0.0060042,2497.3,2496.8,8.2138042]
[1748661866915,0.0060042,2497.3,2497.2,0.8006]
[1748661867122,0.0060042,2497.3,2497.2,5.4596]
[1748661867817,0.0060042,2497.3,2497.2,4.659]
[1748661868217,0.0060042,2497.3,2497.2,5.975]
[1748661868521,0.0060042,2497.3,2497.2,6.7756]
[1748661868924,0.0060042,2497.3,2497.2,5.975]
[1748661869222,0.8065742,2497.3,2497.2,4.659]
[1748661869423,0.0060042,2497.3,2496.9,1.316]
[1748661869615,0.80066,2497.0,2496.9,1.316]
[1748661869811,1.3777,2497.2,2496.8,7.8728042]
[1748661869812,0.8007,2496.9,2496.8,7.8728042]
[1748661870019,0.8007,2496.9,2496.8,4.6650042]
[1748661870422,2.17832,2497.2,2496.8,5.4657142]
[1748661870616,0.80064,2497.1,2496.8,5.4657142]
[1748661870813,0.07155339,2496.9,2496.8,5.4657142]
[1748661871726,0.07155339,2496.9,2496.8,8.6735142]
[1748661871925,0.07155339,2496.9,2496.8,9.5421142]
[1748661872525,0.07155339,2496.9,2496.8,14.5421142]
[1748661875328,0.0060042,2497.3,2497.2,0.8006]
[1748661875527,0.0060042,2497.3,2497.2,8.6604]
[1748661875725,0.0060042,2497.3,2497.2,13.6604]
[1748661876131,0.0060042,2497.3,2497.2,4.652]
[1748661876337,0.8065742,2497.3,2497.2,4.652]
[1748661876536,0.0060042,2497.3,2497.2,4.652]
[1748661876738,0.8065742,2497.3,2497.2,4.652]
[1748661876929,1.31864539,2497.3,2497.2,5.4526]
[1748661877127,1.31864539,2497.3,2497.2,8.6604]
[1748661877638,1.31864539,2497.3,2497.2,13.6604]
[1748661878134,1.31864539,2497.3,2497.2,8.6604]
[1748661878738,1.31864539,2497.3,2497.2,7.8598]
[1748661878938,2.11921539,2497.3,2497.2,4.652]
[1748661881845,3.43281539,2497.3,2497.2,4.652]
[1748661885142,2.11921539,2497.3,2497.2,4.652]
[1748661887743,1.31864539,2497.3,2497.2,5.4526]
[1748661888348,2.11921539,2497.3,2497.2,4.652]
[1748661890044,1.39019878,2497.3,2497.2,4.652]
[1748661890350,2.19076878,2497.3,2497.2,4.652]
[1748661891547,2.19076878,2497.3,2497.2,5.936]
[1748661891748,1.39019878,2497.3,2497.2,5.936]
[1748661891949,1.39019878,2497.3,2497.2,6.7366]
[1748661892251,2.19076878,2497.3,2497.2,5.936]
[1748661893849,1.39019878,2497.3,2497.2,6.7366]
[1748661895150,1.39019878,2497.3,2497.2,9.9444]
[1748661895450,1.39019878,2497.3,2497.2,14.9444]
[1748661896149,0.07755759,2497.3,2497.2,14.9444]
[1748661896349,0.07755759,2497.3,2497.2,9.9444]
[1748661897550,0.87812759,2497.3,2497.2,9.1438]
[1748661897844,0.07755759,2497.3,2497.2,6.7366]
[1748661898847,0.07755759,2497.3,2497.2,9.9444]
[1748661899356,0.19065759,2497.3,2497.2,9.1438]
[1748661899547,0.99122759,2497.3,2497.2,9.1438]
[1748661899851,0.19065759,2497.3,2497.2,9.1438]
[1748661900052,0.19065759,2497.3,2497.2,9.9444]
[1748661900847,0.19065759,2497.3,2497.2,9.1438]
[1748661901049,0.19065759,2497.3,2497.2,9.9444]
[1748661901651,3.2078,2498.1,2497.3,2.00141]
[1748661901850,3.2078,2498.1,2498.0,0.80034]
[1748661902252,2.34737919,2498.2,2498.1,0.80031]
[1748661902554,2.34737919,2498.6,2498.5,0.80018]
[1748661902758,2.34737919,2498.6,2498.5,5.44218]
[1748661903155,2.34737919,2498.6,2498.5,6.69698]
[1748661903357,0.0060042,2498.8,2498.6,0.80012]
[1748661903656,0.80012,2498.7,2498.5,4.642]
[1748661903857,0.80012,2498.7,2498.5,5.8968]
[1748661904053,0.8061142,2498.8,2498.5,6.69698]
[1748661904359,0.80012,2498.7,2498.5,5.8968]
[1748661904754,0.0060042,2498.8,2498.5,5.8968]
[1748661904958,0.0060042,2498.8,2498.7,0.80012]
[1748661905264,0.0060042,2498.8,2498.7,4.00792]
[1748661905559,0.80013,2498.7,2498.5,5.8968]
[1748661906056,0.0060042,2498.8,2498.5,5.8968]
[1748661907153,0.80015,2498.6,2498.5,4.642]
[1748661907552,0.80021,2498.4,2498.3,0.0060042]
[1748661908055,1.3788,2498.5,2498.3,0.8062342]
[1748661908255,1.6903042,2498.8,2498.3,1.3293042]
[1748661908450,0.8489042,2498.8,2498.5,0.80017]
[1748661908649,0.80012,2498.7,2498.6,5.9643]
[1748661908954,0.80012,2498.7,2498.6,4.641]
[1748661909553,0.8061042,2498.8,2498.6,4.641]
[1748661909861,0.80012,2498.7,2498.6,4.641]
[1748661910156,0.0060042,2498.8,2498.6,4.641]
[1748661910357,0.80012,2498.7,2498.6,4.641]
[1748661910654,0.8061042,2498.8,2498.6,4.641]
[1748661910857,0.80012,2498.7,2498.6,4.641]
[1748661911156,0.0060042,2498.8,2498.6,5.44115]
[1748661911360,1.0060942,2498.8,2498.7,1.2519]
[1748661912156,0.2060042,2498.8,2498.7,2.05202]
[1748661912556,1.0060942,2498.8,2498.7,1.2519]
[1748661913666,0.80012,2498.7,2498.6,4.641]
[1748661913858,0.2060042,2498.8,2498.5,3.2078]
[1748661913859,0.80015,2498.6,2498.5,3.2078]
[1748661914058,0.80015,2498.6,2498.5,7.8478]
[1748661914258,1.2634,2498.7,2498.5,7.8478]
[1748661914259,1.0061142,2498.8,2498.5,7.8478]
[1748661914458,0.80012,2498.7,2498.6,1.3677]
[1748661915262,0.2060042,2498.8,2498.6,1.3677]
[1748661915457,0.80012,2498.7,2498.6,1.3677]
[1748661916464,0.2060042,2498.8,2498.7,0.80012]
[1748661916664,0.2060042,2498.8,2498.5,7.8478]
[1748661916964,0.80021,2498.4,2498.3,0.8954042]
[1748661917164,4.00801,2498.4,2498.3,0.0060042]
[1748661917361,9.00801,2498.4,2498.3,0.0060042]
[1748661917565,9.00801,2498.4,2497.8,4.64]
[1748661917566,0.80037,2497.9,2497.8,4.64]
[1748661918159,2.12767,2497.9,2497.8,4.64]
[1748661918562,3.69617,2497.9,2497.8,4.64]
[1748661920559,3.2078,2498.4,2497.8,4.64]
[1748661920759,0.80032,2498.1,2497.8,5.44039]
[1748661921162,1.344,2498.4,2497.8,7.8478]
[1748661921365,0.8003,2498.2,2497.9,2.06426]
[1748661921666,4.8144,2498.6,2497.9,2.0111]
[1748661921862,6.1584,2498.6,2497.9,2.0111]
[1748661922061,0.80026,2498.3,2497.9,2.0111]
[1748661922568,6.1584,2498.6,2497.9,5.2189]
[1748661922762,0.80033,2498.1,2497.9,2.0111]
[1748661922962,2.9506,2498.6,2497.9,2.81146]
[1748661923157,0.80029,2498.2,2497.9,2.0111]
[1748661923358,0.80024,2498.4,2498.1,0.8003]
[1748661923569,0.80024,2498.4,2498.1,0.80028]
[1748661924263,0.80024,2498.4,2498.1,0.80029]
[1748661924457,0.80024,2498.4,2498.2,0.80027]
[1748661924662,3.75076,2498.6,2498.2,4.64]
[1748661924864,0.80016,2498.6,2498.4,0.80021]
[1748661925063,3.27935339,2498.7,2498.3,1.2447]
[1748661925269,1.3062,2498.6,2498.3,1.2447]
[1748661925470,3.27935339,2498.7,2498.5,0.80016]
[1748661925668,4.07947339,2498.7,2498.6,4.64]
[1748661926166,5.42017339,2498.7,2498.6,4.64]
[1748661926558,3.27935339,2498.7,2498.6,4.64]
[1748661926764,5.39049942,2498.7,2498.6,4.64]
[1748661927370,4.59037942,2498.7,2498.6,4.64]
[1748661927664,4.07947339,2498.7,2498.6,5.955]
[1748661927869,1.07167339,2498.7,2498.6,5.955]
[1748661928667,1.07167339,2498.7,2498.6,4.64]
[1748661928863,2.41237339,2498.7,2498.6,4.64]
[1748661929264,0.80023,2498.4,2498.2,5.955]
[1748661929462,0.80023,2498.4,2498.2,6.75528]
[1748661929665,0.8002,2498.5,2498.3,0.80024]
[1748661929866,0.8002,2498.5,2498.3,2.10114]
[1748661930069,4.008,2498.5,2498.3,2.10114]
[1748661930276,3.2078,2498.5,2498.4,0.80022]
[1748661930464,1.07168339,2498.7,2498.4,1.3009]
[1748661930665,1.07168339,2498.7,2498.4,2.1011]
[1748661930967,0.80016,2498.6,2498.4,2.1011]
[1748661931269,0.27155339,2498.7,2498.4,1.3009]
[1748661931270,0.80019,2498.5,2498.4,1.3009]
[1748661932272,0.80017,2498.6,2498.4,2.10109]
[1748661932467,0.80017,2498.6,2498.4,2.10111]
[1748661932767,0.80019,2498.5,2498.4,1.3009]
[1748661932967,3.2078,2498.6,2498.1,0.7809]
[1748661933267,0.80031,2498.1,2498.0,4.627]
[1748661933672,0.80031,2498.1,2498.0,5.8839]
[1748661934971,0.80031,2498.1,2498.0,4.627]
[1748661935174,1.2612,2498.4,2498.0,4.627]
[1748661935375,0.80029,2498.2,2498.0,6.70803]
[1748661935765,1.2612,2498.4,2498.0,5.9077]
[1748661936065,0.07155339,2498.6,2498.0,9.1155]
[1748661936279,0.87171339,2498.6,2498.4,0.8002]
[1748661936470,0.07155339,2498.6,2498.5,2.08089]
[1748661936769,0.87170339,2498.6,2498.5,1.2807]
[1748661936971,0.07155339,2498.6,2498.4,4.627]
[1748661937173,0.87173339,2498.6,2498.4,5.42722]
[1748661937371,0.80019,2498.5,2498.4,4.627]
[1748661937671,0.80019,2498.5,2498.4,5.9077]
[1748661937875,1.38717992,2498.6,2498.3,4.627]
[1748661938172,0.80023,2498.4,2498.3,4.627]
[1748661938777,5.80023,2498.4,2498.3,4.627]
[1748661939073,0.80041,2497.8,2497.7,8.605]
[1748661939468,0.80039,2497.9,2497.7,9.40544]
[1748661939673,1.3128,2498.3,2497.7,9.9516]
[1748661939974,2.11308,2498.3,2497.8,1.3466]
[1748661940472,1.31486678,2498.2,2498.0,0.80032]
[1748661940867,2.11516678,2498.2,2498.1,1.3466]
[1748661941375,2.11307,2498.3,2498.1,2.14691]
[1748661941570,3.2078,2498.5,2498.1,1.3466]
[1748661941769,0.80022,2498.4,2498.2,2.12147]
[1748661941969,0.80032,2498.1,2497.7,8.605]
[1748661942172,0.8003,2498.2,2498.0,0.80035]
[1748661942472,0.80028,2498.3,2498.1,5.42729]
[1748661942671,0.80028,2498.3,2498.1,4.627]
[1748661942971,0.80028,2498.2,2498.1,4.627]
[1748661943270,2.15514,2498.4,2498.1,4.627]
[1748661943476,0.80025,2498.3,2498.1,5.4273]
[1748661943774,0.80028,2498.2,2498.1,4.627]
[1748661943974,1.31562235,2498.3,2498.1,4.627]
[1748661944174,0.07155339,2498.6,2498.3,0.80023]
[1748661944373,0.07155339,2498.6,2498.5,0.80019]
[1748661944579,0.07155339,2498.6,2498.5,4.627]
[1748661945064,1.38767225,2498.6,2498.5,6.70489]
[1748661945475,0.87170339,2498.6,2498.5,5.9047]
[1748661945877,0.87170339,2498.6,2498.5,4.627]
[1748661946875,1.38808754,2498.6,2498.5,4.627]
[1748661947074,1.38808754,2498.6,2498.5,6.70489]
[1748661947479,2.34737919,2499.1,2498.5,14.1125]
[1748661947671,2.34737919,2499.1,2499.0,0.80003]
[1748661947870,2.34737919,2499.2,2499.1,0.79999]
[1748661948975,3.2078,2499.3,2499.2,0.79996]
[1748661949377,4.00773,2499.3,2499.1,0.79998]
[1748661949577,3.2078,2499.3,2499.2,1.3606]
[1748661949776,3.2078,2499.3,2499.2,2.16056]
[1748661950079,3.2078,2499.3,2499.2,1.3606]
[1748661950880,3.2078,2499.3,2499.2,2.16056]
[1748661951279,3.2078,2499.3,2499.0,1.5483]
[1748661951481,4.522,2499.3,2499.1,0.79997]
[1748661951671,5.32194,2499.3,2499.1,2.06027]
[1748661952281,5.32194,2499.3,2498.9,4.6320042]
[1748661952282,0.80003,2499.0,2498.9,4.6320042]
[1748661952680,0.80001,2499.1,2498.9,4.6320042]
[1748661953281,0.80001,2499.1,2498.9,5.4320642]
[1748661953480,4.522,2499.3,2499.1,0.79997]
[1748661953678,5.32194,2499.3,2499.1,0.79998]
[1748661953877,2.11414,2499.3,2499.1,0.79998]
[1748661954078,0.79999,2499.2,2499.0,1.2505]
[1748661954280,0.79999,2499.1,2499.0,1.2505]
[1748661955184,1.3032,2499.2,2499.1,0.79999]
[1748661955481,0.0060042,2499.4,2499.0,1.2505]
[1748661955677,0.8059042,2499.4,2499.2,0.79993]
[1748661956179,0.0060042,2499.4,2499.3,0.79993]
[1748661956377,0.0060042,2499.4,2499.1,0.7328]
[1748661956572,0.0060042,2499.4,2499.3,0.79993]
[1748661957879,0.79993,2499.3,2499.2,1.3172]
[1748661958281,3.2138042,2499.4,2498.9,0.0060042]
[1748661958585,0.80003,2499.0,2498.9,0.0060042]
[1748661958787,1.3388,2499.2,2498.9,0.0060042]
[1748661958984,1.52544,2499.3,2499.1,0.79999]
[1748661959288,0.7255,2499.3,2499.2,0.79996]
[1748661959580,3.2138042,2499.4,2499.3,0.79993]
[1748661960387,3.2138042,2499.4,2499.3,2.09133]
[1748661960585,0.0060042,2499.4,2499.3,3.59273]
[1748661960893,2.34737919,2500.1,2500.0,0.79971]
[1748661961086,2.34737919,2500.3,2500.2,0.79964]
[1748661961298,2.34737919,2500.3,2500.1,2.09106]
[1748661961491,2.34737919,2500.3,2500.2,2.09104]
[1748661961985,0.0060042,2500.5,2500.3,0.79961]
[1748661962184,0.0060042,2500.5,2500.3,5.9024]
[1748661962385,0.8055642,2500.5,2500.3,5.9024]
[1748661962691,0.79964,2500.2,2500.1,0.7375]
[1748661962889,0.79964,2500.2,2500.1,5.3485]
[1748661963190,0.79964,2500.2,2500.1,4.611]
[1748661963390,5.79964,2500.2,2500.1,4.611]
[1748661963588,0.79983,2499.6,2499.5,1.3209]
[1748661963784,3.2078,2499.9,2499.5,5.9319]
[1748661964089,0.79983,2499.6,2499.5,5.9319]
[1748661964394,3.2078,2499.9,2499.5,5.9319]
[1748661964395,0.79982,2499.7,2499.5,5.9319]
[1748661964786,0.79975,2499.9,2499.5,5.9319]
[1748661964989,1.44935339,2500.1,2499.5,5.9319]
[1748661965195,0.79983,2499.6,2499.5,5.9319]
[1748661965396,0.79983,2499.7,2499.5,5.9319]
[1748661965693,0.79983,2499.6,2499.5,5.9319]
[1748661966086,0.79987,2499.5,2499.4,3.2078]
[1748661966291,0.79999,2499.1,2499.0,5.3678]
[1748661966591,0.80003,2499.0,2498.7,9.33661]
[1748661966782,0.0060042,2499.2,2498.7,3.9265]
[1748661966983,0.0060042,2499.2,2499.1,0.79999]
[1748661967183,0.0060042,2499.2,2499.0,6.01601]
[1748661967393,0.0060042,2499.2,2499.1,0.79999]
[1748661967596,0.0060042,2499.2,2499.0,6.01601]
[1748661968091,0.0060042,2499.2,2499.1,0.79999]
[1748661968992,0.0060042,2499.2,2499.1,5.79999]
[1748661970195,3.2078,2500.5,2500.0,0.79971]
[1748661970398,3.2078,2500.5,2500.0,8.61751]
[1748661970694,3.2078,2500.5,2500.0,13.61751]
[1748661971398,0.79952,2500.6,2500.0,13.61751]
[1748661971590,2.1153,2500.7,2500.0,13.61751]
[1748661971896,1.3158,2500.7,2500.0,13.61751]
[1748661972092,0.79956,2500.5,2500.0,13.61751]
[1748661972492,4.5236,2500.7,2500.0,8.61751]
[1748661973391,0.79952,2500.6,2500.0,8.61751]
[1748661973593,0.79955,2500.5,2500.0,8.61751]
[1748661974196,2.1153,2500.7,2500.0,8.61751]
[1748661974395,0.79953,2500.6,2500.0,8.61751]
[1748661974590,2.11529,2500.7,2500.0,8.61751]
[1748661974800,2.27523,2500.9,2500.6,0.79952]
[1748661975003,2.27523,2500.9,2500.6,5.40852]
[1748661975202,2.8059,2500.9,2500.7,0.79946]
[1748661975507,3.60532,2500.9,2500.6,5.40849]
[1748661976194,0.79946,2500.8,2500.6,5.40849]
[1748661976396,0.79948,2500.7,2500.6,4.609]
[1748661976598,2.12958,2500.7,2500.6,4.609]
[1748661977499,0.79948,2500.7,2500.6,4.609]
[1748661978795,2.08567,2500.8,2500.6,4.609]
[1748661978994,0.79948,2500.7,2500.6,4.609]
[1748661979196,1.2862,2500.7,2500.6,5.40851]
[1748661979492,0.7016,2500.9,2500.6,4.609]
[1748661979692,4.65909,2501.0,2500.7,0.79948]
[1748661979898,3.8597,2501.0,2500.6,6.08979]
[1748661980098,0.79948,2500.7,2500.6,5.2903]
[1748661980400,1.35775339,2500.9,2500.6,5.2903]
[1748661980401,0.79947,2500.8,2500.6,6.08981]
[1748661980595,1.35775339,2500.9,2500.5,0.0060042]
[1748661980801,2.15149,2500.7,2500.6,4.609]
[1748661980996,1.352,2500.7,2500.6,4.609]
[1748661982701,2.15148,2500.7,2500.6,4.609]
[1748661983097,1.52988339,2500.9,2500.7,0.79947]
[1748661983597,0.73045339,2500.9,2500.6,5.93]
[1748661983896,1.52987339,2500.9,2500.7,2.17366]
[1748661984298,0.07155339,2500.9,2500.7,1.3742]
[1748661984499,0.79945,2500.8,2500.7,1.3742]
[1748661984703,0.07155339,2500.9,2500.6,4.609]
[1748661984704,1.44635339,2500.9,2500.6,4.609]
[1748661985000,0.07155339,2500.9,2500.8,4.00725]
[1748661985205,5.55517919,2501.5,2501.4,0.79926]
[1748661985398,0.79926,2501.4,2501.2,5.40831]
[1748661985705,0.79929,2501.3,2501.2,4.609]
[1748661985906,2.17408,2501.4,2501.2,4.609]
[1748661986093,5.55517919,2501.5,2501.2,4.609]
[1748661986293,3.2078,2501.5,2501.4,0.79926]
[1748661986701,0.79926,2501.4,2501.3,1.3742]
[1748661986895,0.79931,2501.3,2500.9,0.6603]
[1748661987104,0.79932,2501.3,2501.0,6.76766]
[1748661987305,1.3516,2501.4,2501.0,6.76766]
[1748661987494,0.79934,2501.2,2501.0,6.76766]
[1748661988304,0.79934,2501.2,2500.9,0.6603]
[1748661988305,0.79947,2500.8,2500.5,40.3240042]
[1748661988507,0.79952,2500.6,2500.5,0.0060042]
[1748661988708,1.99848,2501.0,2500.5,0.0060042]
[1748661988709,1.3516,2500.7,2500.5,0.8055342]
[1748661989009,0.79944,2500.9,2500.7,0.79947]
[1748661989205,0.87099339,2500.9,2500.7,0.79947]
[1748661989407,0.87099339,2500.9,2500.6,2.1598]
[1748661989705,0.79945,2500.8,2500.6,2.1598]
[1748661990106,0.79948,2500.7,2500.6,1.3603]
[1748661990404,0.79947,2500.8,2500.6,2.15981]
[1748661990907,0.07155339,2500.9,2500.6,1.3603]
[1748661991102,0.07155339,2500.9,2500.7,1.3139]
[1748661991297,0.07155339,2500.9,2500.7,2.11336]
[1748661991497,0.07155339,2500.9,2500.8,0.79945]
[1748661992106,0.07155339,2500.9,2500.7,2.11336]
[1748661992299,0.07155339,2500.9,2500.8,4.594]
[1748661992501,0.07155339,2500.9,2500.8,5.9079]
[1748661993001,0.87097339,2500.9,2500.8,4.594]
[1748661993606,0.07155339,2500.9,2500.8,5.8782]
[1748661993808,0.87097339,2500.9,2500.8,5.8782]
[1748661994011,0.07155339,2500.9,2500.8,6.67765]
[1748661994509,0.07155339,2500.9,2500.8,5.8782]
[1748661994708,0.87097339,2500.9,2500.8,5.8782]
[1748661995004,0.87097339,2500.9,2500.8,1.2842]
[1748661995206,0.79952,2500.6,2500.5,0.0060042]
[1748661995505,4.00732,2500.6,2500.5,0.0060042]
[1748661995709,1.99888,2500.5,2499.9,4.594]
[1748661996009,0.79969,2500.1,2499.9,4.594]
[1748661996205,0.79969,2500.1,2499.6,1.9436]
[1748661996206,3.2078,2500.3,2499.6,1.9436]
[1748661996402,3.2078,2499.7,2499.5,4.594]
[1748661996608,0.79991,2499.4,2499.2,5.3015]
[1748661996803,0.0060042,2499.8,2499.2,5.3015]
[1748661996804,1.30371354,2500.2,2499.2,5.3015]
[1748661997004,3.2078,2502.8,2500.9,1.99853]
[1748661997206,1.9267,2502.2,2502.0,3.2078]
[1748661998010,0.6601,2502.2,2502.0,3.2078]
[1748661998211,5.47795408,2503.2,2502.0,3.2078]
[1748661998418,6.35011709,2502.5,2502.4,3.2078]
[1748661998908,5.79891,2502.5,2502.4,3.2078]
[1748661999509,5.0,2502.5,2502.4,3.2078]
[1748661999708,5.79891,2502.5,2502.4,3.2078]
[1748661999909,5.0,2502.5,2502.4,3.2078]
[1748662000210,5.79891,2502.5,2502.4,3.2078]
[1748662000511,0.79889,2502.6,2502.4,3.2078]
[1748662000717,0.79891,2502.5,2502.4,3.2078]
[1748662000917,1.3666,2502.7,2502.4,3.2078]
[1748662001715,0.79891,2502.5,2502.4,3.2078]
[1748662002115,5.79891,2502.5,2502.4,3.2078]
[1748662004416,0.79891,2502.5,2502.4,3.2078]
[1748662004622,0.79889,2502.6,2502.4,3.2078]
[1748662004922,1.3666,2502.7,2502.4,3.2078]
[1748662005117,0.6601,2502.7,2502.4,3.2078]
[1748662005426,0.6601,2502.7,2502.5,1.2882]
[1748662007030,0.6601,2502.7,2502.5,2.08711]
[1748662007618,0.6568,2503.1,2502.7,0.79883]
[1748662007824,0.7988,2502.9,2502.6,0.644]
[1748662008020,0.7988,2502.9,2502.8,3.2078]
[1748662008222,0.6568,2503.1,2502.8,3.2078]
[1748662008624,0.6305,2503.2,2502.8,3.2078]
[1748662008625,0.79877,2503.0,2502.8,3.2078]
[1748662008923,0.6305,2503.2,2502.8,3.2078]
[1748662009125,1.42919,2503.2,2503.1,3.2078]
[1748662010629,2.61074821,2503.2,2503.1,3.2078]
[1748662010831,1.98024821,2503.2,2503.1,3.2078]
[1748662011326,0.79869,2503.2,2503.1,3.2078]
[1748662011531,2.06029,2503.2,2503.1,3.2078]
[1748662013330,0.79885,2502.7,2502.6,0.644]
[1748662013624,0.07155339,2502.7,2502.6,4.65068]
[1748662013826,0.07155339,2502.7,2502.6,5.92998]
[1748662014027,0.87040339,2502.7,2502.6,5.1311]
[1748662014227,0.07155339,2502.7,2502.6,5.1311]
[1748662014930,0.07155339,2502.7,2502.6,5.92998]
[1748662016232,0.07155339,2502.7,2502.6,5.91869068]
[1748662018728,2.6199,2503.5,2502.6,5.91869068]
[1748662018729,5.20411,2503.8,2502.6,5.11981068]
[1748662018929,0.79866,2503.3,2503.2,3.2078]
[1748662019331,0.79872,2503.1,2503.0,0.00599173]
[1748662019735,8.2078,2503.1,2502.2,3.2078]
[1748662020032,0.79902,2502.2,2501.9,1.3095]
[1748662020229,0.79902,2502.2,2502.1,3.2078]
[1748662020631,0.79897,2502.4,2502.1,3.2078]
[1748662020840,0.00595016,2502.4,2502.2,1.3231]
[1748662021048,0.79898,2502.3,2502.2,1.3231]
[1748662021250,0.00595016,2502.4,2502.2,1.3231]
[1748662021452,0.79898,2502.3,2502.2,1.3231]
[1748662021939,0.00595016,2502.4,2501.9,0.66759173]
[1748662022145,0.79907,2502.1,2502.0,1.3231]
[1748662024844,0.79907,2502.0,2501.9,0.00599173]
[1748662025452,0.79906,2502.1,2501.9,0.00599173]
[1748662025647,3.2078,2502.2,2501.9,1.26429173]
[1748662025852,4.00682,2502.2,2501.9,2.06338173]
[1748662026052,4.00682,2502.2,2502.0,0.79905]
[1748662026053,3.2078,2502.2,2502.0,0.79905]
[1748662026354,3.2078,2502.2,2502.1,2.14344]
[1748662026655,3.2078,2502.2,2502.1,1.3444]
[1748662026952,3.2078,2502.2,2502.1,2.14344]
[1748662027152,0.07155339,2502.3,2502.2,0.79901]
[1748662027348,0.87053339,2502.3,2502.2,1.9989]
[1748662028452,0.07155339,2502.3,2502.2,1.9989]
[1748662028751,0.87053339,2502.3,2502.2,1.9989]
[1748662029955,2.05938414,2502.3,2502.2,1.9989]
[1748662030355,1.26040414,2502.3,2502.2,2.79791]
[1748662030556,2.05938414,2502.3,2502.2,1.9989]
[1748662030762,0.87053339,2502.3,2502.2,1.9989]
[1748662032249,0.00595016,2502.4,2502.2,1.9989]
[1748662032250,0.00595016,2502.4,2502.2,10.2067]
[1748662032558,0.00595016,2502.4,2502.3,2.14838]
[1748662034562,0.00595016,2502.4,2502.3,1.3494]
[1748662035155,3.2078,2503.2,2502.3,6.3494]
[1748662035460,0.79878,2503.0,2502.7,4.00664]
[1748662035660,0.79878,2503.0,2502.8,1.8917]
[1748662035858,0.79878,2502.9,2502.8,1.8917]
[1748662036057,1.18863381,2503.1,2502.8,1.8917]
[1748662036263,1.18863381,2503.0,2502.8,1.8917]
[1748662036758,1.98739381,2503.0,2502.8,1.8917]
[1748662036960,1.18863381,2503.0,2502.8,1.8917]
[1748662037151,0.79878,2502.9,2502.8,1.8917]
[1748662037359,1.98741381,2503.0,2502.8,1.8917]
[1748662037656,0.79878,2502.9,2502.8,1.8917]
[1748662039768,0.79877,2503.0,2502.8,1.8917]
[1748662039968,0.07155339,2502.9,2502.8,1.8917]
[1748662040167,0.87033339,2502.9,2502.8,1.8917]
[1748662040460,0.07155339,2502.9,2502.8,1.8917]
[1748662040665,0.87033339,2502.9,2502.8,1.8917]
[1748662041168,0.07155339,2502.9,2502.8,1.8917]
[1748662041367,0.87033339,2502.9,2502.8,1.8917]
[1748662041770,0.07155339,2502.9,2502.8,1.8917]
[1748662042071,0.07155339,2502.9,2502.8,2.69052]
[1748662042466,2.37452596,2503.6,2503.2,0.79867]
[1748662042767,2.37452596,2503.6,2503.2,3.2078]
[1748662043082,0.79862,2503.4,2503.3,1.2726]
[1748662043269,0.79869,2503.2,2503.1,3.21379173]
[1748662043467,1.2446,2503.3,2503.1,0.00599173]
[1748662043766,0.79868,2503.3,2503.1,0.00599173]
[1748662043966,1.98430522,2503.4,2503.1,0.00599173]
[1748662044268,3.8768,2503.8,2503.1,1.27859173]
[1748662044464,5.1311,2503.8,2503.3,0.79866]
[1748662044772,0.79858,2503.6,2503.4,1.3042]
[1748662044971,5.1311,2503.8,2503.4,1.9443]
[1748662045270,0.79859,2503.5,2503.4,1.9443]
[1748662045667,2.37452596,2504.1,2503.7,1.9963]
[1748662045875,8.72195633,2504.5,2504.4,0.79831]
[1748662046173,8.72195633,2504.5,2504.4,8.70111]
[1748662046369,1.94030614,2504.5,2504.4,13.70111]
[1748662046770,3.96465601,2504.6,2504.5,0.79827]
[1748662046969,0.79797,2505.5,2505.0,0.79811]
[1748662047268,7.17245601,2505.9,2505.2,3.2078]
[1748662047269,3.96465601,2505.9,2505.2,3.2078]
[1748662047472,3.96465601,2505.9,2505.5,3.2078]
[1748662047673,0.79788,2505.8,2505.5,3.2078]
[1748662047870,4.76249601,2505.9,2505.6,1.3329]
[1748662048069,0.79786,2505.8,2505.6,1.3329]
[1748662048573,0.79788,2505.8,2505.6,1.3329]
[1748662048769,1.3597,2506.2,2505.6,1.3329]
[1748662048970,0.79789,2505.7,2505.6,1.3329]
[1748662049171,1.3597,2506.2,2505.6,1.3329]
[1748662049378,0.79788,2505.8,2505.6,1.3329]
[1748662049667,0.79782,2506.0,2505.6,1.3329]
[1748662049863,3.2078,2506.3,2505.6,1.3329]